bitfinex/quotes_BTCUSD_20250529
["timestamp","ask_amount","ask_price","bid_price","bid_amount"]
[1748495220113,0.5188987,107580.0,107570.0,0.68366418]
[1748495220338,0.5188987,107580.0,107570.0,0.8788858]
[1748495220750,0.5188987,107580.0,107570.0,0.88818189]
[1748495220968,0.5188987,107580.0,107570.0,0.8974779]
[1748495221176,0.2084987,107580.0,107570.0,0.88818189]
[1748495221392,0.2084987,107580.0,107570.0,0.68366418]
[1748495221644,0.2084987,107580.0,107570.0,0.37984271]
[1748495221861,0.2084987,107580.0,107570.0,0.78606418]
[1748495222073,0.2084987,107580.0,107570.0,0.98128563]
[1748495222279,0.2084987,107580.0,107570.0,0.77676791]
[1748495223128,0.2084987,107580.0,107570.0,0.78606418]
[1748495223561,0.2084987,107580.0,107570.0,0.77676791]
[1748495224026,0.2084987,107580.0,107570.0,0.76198137]
[1748495224488,0.2084987,107580.0,107570.0,0.4416599]
[1748495224707,0.2084987,107580.0,107570.0,0.4581599]
[1748495226543,0.2084987,107580.0,107570.0,0.76198137]
[1748495226756,0.2397987,107580.0,107570.0,0.30821905]
[1748495227931,0.2084987,107580.0,107570.0,0.64258137]
[1748495228209,0.2084987,107580.0,107570.0,0.65828137]
[1748495228439,0.5186187,107580.0,107570.0,0.65828137]
[1748495228651,0.5186187,107580.0,107570.0,0.3544599]
[1748495229532,0.5186187,107580.0,107570.0,0.3227599]
[1748495229735,0.2084987,107580.0,107570.0,0.4251599]
[1748495229940,0.5185787,107580.0,107570.0,0.4251599]
[1748495231707,0.5185787,107580.0,107570.0,0.4414599]
[1748495235891,0.5185787,107580.0,107570.0,0.4251599]
[1748495236096,0.5488787,107580.0,107570.0,0.4251599]
[1748495236739,0.5185787,107580.0,107570.0,0.4251599]
[1748495238250,0.5509787,107580.0,107570.0,0.41061905]
[1748495238694,0.5345787,107580.0,107570.0,0.41061905]
[1748495239559,0.5185787,107580.0,107570.0,0.41061905]
[1748495240041,0.5185787,107580.0,107570.0,0.42621905]
[1748495241408,0.5185787,107580.0,107570.0,0.41061905]
[1748495241647,0.2084987,107580.0,107570.0,0.42591905]
[1748495242117,0.5182187,107580.0,107570.0,0.42591905]
[1748495242566,0.5182187,107580.0,107570.0,0.76048137]
[1748495243028,0.5182187,107580.0,107570.0,0.4566599]
[1748495243494,0.5182187,107580.0,107570.0,0.4404599]
[1748495245341,0.5182187,107580.0,107570.0,0.4566599]
[1748495246933,0.5180987,107580.0,107570.0,0.4566599]
[1748495248136,0.2084987,107580.0,107570.0,0.4566599]
[1748495248363,0.5180587,107580.0,107570.0,0.95570299]
[1748495248585,0.5180587,107580.0,107570.0,0.76977764]
[1748495248818,0.5180587,107580.0,107570.0,0.95570308]
[1748495249064,0.5180587,107580.0,107570.0,0.76977764]
[1748495249522,0.2084987,107580.0,107570.0,0.96499926]
[1748495249749,0.5180187,107580.0,107570.0,0.96499926]
[1748495249974,0.49942816,107580.0,107570.0,0.96499926]
[1748495250202,0.49942816,107580.0,107570.0,0.76977764]
[1748495250429,0.49942816,107580.0,107570.0,0.46595617]
[1748495250653,0.49942816,107580.0,107570.0,0.76977764]
[1748495250898,0.49942816,107580.0,107570.0,0.77907382]
[1748495251361,0.49942816,107580.0,107570.0,0.96499926]
[1748495252293,0.18990816,107580.0,107570.0,0.97429527]
[1748495252768,0.18990816,107580.0,107570.0,0.96499926]
[1748495253457,0.18990816,107580.0,107570.0,0.76977764]
[1748495254139,0.26430946,107580.0,107570.0,0.3542599]
[1748495254346,0.26430946,107580.0,107570.0,0.3227599]
[1748495254565,0.18990816,107580.0,107570.0,0.3227599]
[1748495255211,0.20580816,107580.0,107570.0,0.3227599]
[1748495257117,0.20580816,107580.0,107570.0,0.4246399]
[1748495257348,0.18990816,107580.0,107570.0,0.4246399]
[1748495260833,0.18990816,107580.0,107570.0,0.4410399]
[1748495261041,0.18990816,107580.0,107570.0,0.4246399]
[1748495261887,0.18990816,107580.0,107570.0,0.4410399]
[1748495266735,0.18990816,107580.0,107570.0,0.3391599]
[1748495266988,0.18990816,107580.0,107570.0,0.4410399]
[1748495270516,0.18990816,107580.0,107570.0,0.4568399]
[1748495273013,0.49886816,107580.0,107570.0,0.4568399]
[1748495273690,0.49886816,107580.0,107570.0,0.4410399]
[1748495274545,0.56887406,107580.0,107570.0,0.4246399]
[1748495274766,0.49886816,107580.0,107570.0,0.4246399]
[1748495276054,0.62172211,107580.0,107570.0,0.2941]
[1748495276474,0.22003638,107560.0,107550.0,0.39599315]
[1748495276683,0.52891638,107560.0,107550.0,0.39599315]
[1748495276891,0.555832,107560.0,107550.0,0.39599315]
[1748495277117,0.555832,107560.0,107550.0,0.29459315]
[1748495277328,0.571632,107560.0,107550.0,0.29459315]
[1748495277969,0.571632,107560.0,107550.0,0.29559315]
[1748495278183,0.54471638,107560.0,107550.0,0.29659315]
[1748495279281,0.63577033,107560.0,107550.0,0.29559315]
[1748495279490,0.63577033,107560.0,107550.0,0.29459315]
[1748495283823,0.61717667,107560.0,107550.0,0.29459315]
[1748495284032,0.63577033,107560.0,107550.0,0.29459315]
[1748495285297,0.71885337,107560.0,107550.0,0.29459315]
[1748495286224,0.63577033,107560.0,107550.0,0.00049315]
[1748495287074,0.63677033,107560.0,107550.0,0.00049315]
[1748495287282,0.63777033,107560.0,107550.0,0.00049315]
[1748495290159,0.97777033,107560.0,107550.0,0.00049315]
[1748495290784,1.26877033,107560.0,107550.0,0.00049315]
[1748495290994,1.35982428,107560.0,107550.0,0.00049315]
[1748495292750,1.26877033,107560.0,107550.0,0.00049315]
[1748495297490,1.29668033,107560.0,107550.0,0.00049315]
[1748495297947,1.29368033,107560.0,107550.0,0.00049315]
[1748495299698,0.98480033,107560.0,107550.0,0.00049315]
[1748495299909,1.29332033,107560.0,107550.0,0.00049315]
[1748495300121,1.38437428,107560.0,107550.0,0.00049315]
[1748495300339,0.31350033,107560.0,107550.0,0.00049315]
[1748495300557,0.59411033,107560.0,107550.0,0.01649315]
[1748495300971,0.93411033,107560.0,107550.0,0.01649315]
[1748495304866,0.93411033,107560.0,107550.0,0.00049315]
[1748495305574,1.07411033,107560.0,107550.0,0.00049315]
[1748495305791,0.85664428,107560.0,107550.0,0.01649315]
[1748495306007,0.76559033,107560.0,107550.0,0.01649315]
[1748495306220,0.93407033,107560.0,107550.0,0.03199315]
[1748495308134,0.28559033,107560.0,107550.0,0.03199315]
[1748495308346,0.59403033,107560.0,107550.0,0.03199315]
[1748495315695,0.19453638,107560.0,107550.0,0.03199315]
[1748495315922,0.50285638,107560.0,107550.0,0.03199315]
[1748495317240,0.19453638,107560.0,107550.0,0.03199315]
[1748495317450,0.50281638,107560.0,107550.0,0.03199315]
[1748495320247,0.50281638,107560.0,107550.0,0.32609315]
[1748495321939,0.50277638,107560.0,107550.0,0.32609315]
[1748495328174,0.19453638,107560.0,107550.0,0.32609315]
[1748495328437,0.19453638,107560.0,107550.0,0.64445547]
[1748495328660,0.19453638,107560.0,107550.0,0.84901122]
[1748495328883,0.50265638,107560.0,107550.0,0.83971348]
[1748495329342,0.50265638,107560.0,107550.0,0.84901139]
[1748495329578,0.19453638,107560.0,107550.0,0.93947104]
[1748495329841,0.02059314,107560.0,107550.0,1.3079582]
[1748495330057,0.0298901,107560.0,107550.0,1.3079582]
[1748495330512,0.01129653,107560.0,107550.0,1.3079582]
[1748495330756,0.02059332,107560.0,107550.0,1.3079582]
[1748495331193,0.01859332,107560.0,107550.0,1.3079582]
[1748495331403,0.01859332,107560.0,107550.0,1.3099582]
[1748495331609,0.01859332,107560.0,107550.0,1.3109582]
[1748495332323,0.01859314,107560.0,107550.0,1.3109582]
[1748495332539,0.02789001,107560.0,107550.0,1.3109582]
[1748495332975,0.0185921,107570.0,107560.0,0.23553638]
[1748495333199,0.5217935,107580.0,107570.0,0.20046629]
[1748495333431,0.5217935,107580.0,107570.0,0.60508776]
[1748495333892,0.5217935,107580.0,107570.0,0.93948385]
[1748495334323,0.51249862,107580.0,107570.0,0.93948394]
[1748495334532,0.51249862,107580.0,107570.0,0.95324454]
[1748495334984,0.51349862,107580.0,107570.0,0.95324454]
[1748495335406,0.51449862,107580.0,107570.0,0.96254063]
[1748495336046,0.51441862,107580.0,107570.0,0.96254063]
[1748495337656,0.20649862,107580.0,107570.0,0.96254063]
[1748495337887,0.51441862,107580.0,107570.0,0.97183664]
[1748495338376,0.51441862,107580.0,107570.0,0.45420145]
[1748495338615,0.50512348,107580.0,107570.0,0.75802292]
[1748495338833,0.50512348,107580.0,107570.0,0.4727939]
[1748495339053,0.50512348,107580.0,107570.0,0.77661537]
[1748495339716,0.49582816,107580.0,107570.0,0.4727939]
[1748495339897,0.49582816,107580.0,107570.0,0.77661537]
[1748495340336,0.49582816,107580.0,107570.0,0.75802292]
[1748495340990,0.01129488,107580.0,107570.0,1.06289007]
[1748495341205,0.22508856,107580.0,107570.0,0.74977294]
[1748495341440,0.22508856,107580.0,107570.0,1.05359441]
[1748495341666,0.0391804,107580.0,107570.0,1.06289007]
[1748495341885,0.0484758,107580.0,107570.0,1.06289025]
[1748495342102,0.0474758,107580.0,107570.0,1.072186]
[1748495342329,0.0464758,107580.0,107570.0,1.072186]
[1748495342541,0.49369088,107590.0,107580.0,0.2586341]
[1748495342542,0.0185883,107590.0,107580.0,0.2586341]
[1748495342776,0.01858787,107590.0,107580.0,0.53215557]
[1748495342995,0.0464708,107590.0,107580.0,0.56345557]
[1748495343439,0.03717635,107590.0,107580.0,0.56345557]
[1748495343728,0.04647149,107590.0,107580.0,0.56345557]
[1748495343955,0.03717695,107590.0,107580.0,0.90345557]
[1748495344175,0.0278825,107590.0,107580.0,0.90345557]
[1748495344595,0.04647149,107590.0,107580.0,0.90345557]
[1748495345463,0.48549237,107600.0,107590.0,0.04724085]
[1748495346747,0.48649237,107600.0,107590.0,0.04724085]
[1748495347382,0.48741237,107600.0,107590.0,0.04724085]
[1748495348726,0.48741237,107600.0,107590.0,0.0566199]
[1748495349783,0.48741237,107600.0,107590.0,0.3507199]
[1748495350467,0.17973237,107600.0,107590.0,0.53661078]
[1748495350687,0.48733237,107600.0,107590.0,0.3507199]
[1748495350908,0.01129324,107600.0,107590.0,0.86831482]
[1748495351130,0.02058614,107600.0,107590.0,0.95936877]
[1748495351369,0.02987947,107600.0,107590.0,0.95936877]
[1748495351598,0.002,107600.0,107590.0,1.29936877]
[1748495352057,0.0112929,107600.0,107590.0,1.29936877]
[1748495352274,0.001,107600.0,107590.0,1.29936877]
[1748495352960,0.03716978,107610.0,107600.0,0.22829444]
[1748495353165,0.03716978,107610.0,107600.0,0.66357591]
[1748495353166,0.03716969,107610.0,107600.0,0.66357591]
[1748495354257,0.03916969,107610.0,107600.0,0.66357591]
[1748495355596,0.0484625,107610.0,107600.0,0.66357608]
[1748495355819,0.03916969,107610.0,107600.0,0.96696915]
[1748495357193,0.002,107610.0,107600.0,1.0580231]
[1748495358488,0.001,107610.0,107600.0,1.0580231]
[1748495359005,0.01029203,107610.0,107600.0,1.4580231]
[1748495359229,0.00929203,107610.0,107600.0,1.4580231]
[1748495359457,0.03716659,107620.0,107610.0,0.24563398]
[1748495359680,0.03731437,107620.0,107610.0,0.6405094]
[1748495359914,0.22315395,107620.0,107610.0,0.63121711]
[1748495360570,0.21386243,107620.0,107610.0,0.63121711]
[1748495360866,0.21586243,107620.0,107610.0,0.63121711]
[1748495361135,0.19586243,107620.0,107610.0,0.63121711]
[1748495361624,0.19586243,107620.0,107610.0,0.92531711]
[1748495363221,0.19586243,107620.0,107610.0,0.93460949]
[1748495363439,0.002,107620.0,107610.0,0.94390178]
[1748495363631,0.02058347,107620.0,107610.0,0.95319399]
[1748495364205,0.02058321,107620.0,107610.0,0.95319399]
[1748495364453,0.03916685,107620.0,107610.0,0.95319399]
[1748495365329,0.0484588,107620.0,107610.0,0.95319399]
[1748495365767,0.0484588,107620.0,107610.0,0.93460949]
[1748495365988,0.03916728,107620.0,107610.0,0.93460949]
[1748495366414,0.21571465,107620.0,107610.0,0.93460949]
[1748495368117,0.19513101,107620.0,107610.0,0.93460949]
[1748495369473,0.19513101,107620.0,107610.0,0.92531711]
[1748495374002,0.20213906,107620.0,107610.0,0.2941]
[1748495374214,0.21733906,107620.0,107610.0,0.2941]
[1748495375087,0.19733906,107620.0,107610.0,0.2941]
[1748495375783,0.28839301,107620.0,107610.0,0.2941]
[1748495375994,0.22714897,107610.0,107600.0,0.2941]
[1748495376241,0.53414897,107610.0,107600.0,0.2941]
[1748495376467,0.1951671,107600.0,107590.0,0.80511905]
[1748495376682,0.1951671,107600.0,107590.0,0.82041905]
[1748495376893,0.1951671,107600.0,107590.0,0.8349599]
[1748495377958,0.1951671,107600.0,107590.0,0.8369599]
[1748495378807,0.20446052,107600.0,107590.0,0.8369599]
[1748495379013,0.20446052,107600.0,107590.0,0.8389599]
[1748495379837,0.20446052,107600.0,107590.0,1.05054515]
[1748495380267,0.1951671,107600.0,107590.0,0.8553599]
[1748495380881,0.1951671,107600.0,107590.0,0.86465444]
[1748495381082,0.1951671,107600.0,107590.0,0.8553599]
[1748495382080,0.1951671,107600.0,107590.0,0.8389599]
[1748495382681,0.1951671,107600.0,107590.0,0.7385599]
[1748495383044,0.1951671,107600.0,107590.0,0.8236999]
[1748495386526,0.1951671,107600.0,107590.0,0.8400999]
[1748495387177,0.1951671,107600.0,107590.0,0.4388599]
[1748495388754,0.2264671,107600.0,107590.0,0.2981]
[1748495388982,0.31752105,107600.0,107590.0,0.2981]
[1748495389809,0.30202105,107600.0,107590.0,0.2981]
[1748495390055,0.30202105,107600.0,107590.0,0.30736104]
[1748495391132,0.5018871,107600.0,107590.0,0.32336104]
[1748495391579,0.1951671,107600.0,107590.0,0.32336104]
[1748495391810,0.5018871,107600.0,107590.0,0.35420189]
[1748495395900,0.5018471,107600.0,107590.0,0.35420189]
[1748495398248,0.1951671,107600.0,107590.0,0.53083173]
[1748495398473,0.01858622,107600.0,107590.0,0.86253577]
[1748495398698,0.02787972,107600.0,107590.0,0.95358972]
[1748495398922,0.16583906,107620.0,107610.0,0.04654085]
[1748495399364,0.47243906,107620.0,107610.0,0.04654085]
[1748495400473,0.18590651,107630.0,107620.0,0.0313]
[1748495400690,0.49250651,107630.0,107620.0,0.66995211]
[1748495400911,0.49250651,107630.0,107620.0,0.87437498]
[1748495401125,0.49246651,107630.0,107620.0,0.66995211]
[1748495401399,0.49246651,107630.0,107620.0,0.86508303]
[1748495401611,0.49446651,107630.0,107620.0,0.86508303]
[1748495401796,0.49246651,107630.0,107620.0,0.86708303]
[1748495402045,0.49246651,107630.0,107620.0,0.85779117]
[1748495402262,0.49246651,107630.0,107620.0,0.85979117]
[1748495402484,0.49246651,107630.0,107620.0,0.37013064]
[1748495402696,0.49246651,107630.0,107620.0,0.67395211]
[1748495403129,0.49246651,107630.0,107620.0,0.34394085]
[1748495406826,0.18590651,107630.0,107620.0,0.34394085]
[1748495407040,0.49230651,107630.0,107620.0,0.34394085]
[1748495408532,0.18593309,107640.0,107630.0,0.25034455]
[1748495408752,0.49229309,107640.0,107630.0,0.04594085]
[1748495408999,0.49229309,107640.0,107630.0,0.10008]
[1748495409835,0.18582179,107630.0,107620.0,0.99175427]
[1748495410039,0.20440344,107630.0,107620.0,1.28692511]
[1748495410270,0.18440344,107630.0,107620.0,1.28692511]
[1748495410473,0.18440344,107630.0,107620.0,1.27763333]
[1748495410685,0.17511287,107630.0,107620.0,1.28692519]
[1748495411093,0.17511287,107630.0,107620.0,1.28892519]
[1748495411551,0.17511287,107630.0,107620.0,1.29092519]
[1748495412862,0.17511287,107630.0,107620.0,1.30021697]
[1748495413338,0.17511287,107630.0,107620.0,1.30950866]
[1748495414435,0.17511287,107630.0,107620.0,1.08650232]
[1748495416030,0.17511287,107630.0,107620.0,0.78268085]
[1748495416231,0.17511287,107630.0,107620.0,1.08650232]
[1748495417223,0.15511287,107630.0,107620.0,1.08650232]
[1748495417813,0.15511287,107630.0,107620.0,0.98646232]
[1748495417965,0.15511287,107630.0,107620.0,1.08650232]
[1748495418162,0.15511287,107630.0,107620.0,1.16766415]
[1748495418368,0.15511287,107630.0,107620.0,0.98646232]
[1748495418582,0.15511287,107630.0,107620.0,0.66764085]
[1748495418786,0.27766682,107630.0,107620.0,0.004]
[1748495423731,0.35465481,107630.0,107620.0,0.004]
[1748495425661,0.27766682,107630.0,107620.0,0.004]
[1748495428837,0.58362682,107630.0,107620.0,0.004]
[1748495432957,0.27766682,107630.0,107620.0,0.004]
[1748495433171,0.58354682,107630.0,107620.0,0.004]
[1748495433808,0.56850682,107630.0,107620.0,0.004]
[1748495434711,0.58470682,107630.0,107620.0,0.004]
[1748495439675,0.56850682,107630.0,107620.0,0.004]
[1748495440324,0.24616682,107630.0,107620.0,0.0205]
[1748495440534,0.55188682,107630.0,107620.0,0.0205]
[1748495441101,0.55188682,107630.0,107620.0,0.004]
[1748495441923,0.55188682,107630.0,107620.0,0.0192]
[1748495443208,0.55188682,107630.0,107620.0,0.004]
[1748495443741,0.24616682,107630.0,107620.0,0.0353]
[1748495443963,0.55180682,107630.0,107620.0,0.0353]
[1748495444389,0.46075287,107630.0,107620.0,0.06824]
[1748495445278,0.46071287,107630.0,107620.0,0.0353]
[1748495445722,0.15511287,107630.0,107620.0,0.0353]
[1748495445978,0.46071287,107630.0,107620.0,0.0353]
[1748495447471,0.46071287,107630.0,107620.0,0.3294]
[1748495447697,0.46067287,107630.0,107620.0,0.3294]
[1748495447903,0.15511287,107630.0,107620.0,0.3294]
[1748495448115,0.15511287,107630.0,107620.0,0.39099141]
[1748495448313,0.46067287,107630.0,107620.0,0.39099141]
[1748495448531,0.15511287,107630.0,107620.0,0.39099141]
[1748495448730,0.46063287,107630.0,107620.0,0.39099141]
[1748495449085,0.15511287,107630.0,107620.0,0.39099141]
[1748495449264,0.46063287,107630.0,107620.0,0.39099141]
[1748495450095,0.15511287,107630.0,107620.0,0.39099141]
[1748495450305,0.46059287,107630.0,107620.0,0.39099141]
[1748495452286,0.44059287,107630.0,107620.0,0.39099141]
[1748495455070,0.44059287,107630.0,107620.0,0.38185479]
[1748495457853,0.44043287,107630.0,107620.0,0.38185479]
[1748495458055,0.44043287,107630.0,107620.0,0.39116117]
[1748495459327,0.42043287,107630.0,107620.0,0.39116117]
[1748495459789,0.42043287,107630.0,107620.0,0.33870638]
[1748495460478,0.11511287,107630.0,107620.0,0.33870638]
[1748495460694,0.42035287,107630.0,107620.0,0.33870638]
[1748495465619,0.11511287,107630.0,107620.0,0.33870638]
[1748495466336,0.42023287,107630.0,107620.0,0.35324723]
[1748495466572,0.09611287,107630.0,107620.0,0.35324723]
[1748495466801,0.40123287,107630.0,107620.0,0.35324723]
[1748495468307,0.09611287,107630.0,107620.0,0.35324723]
[1748495468514,0.40115287,107630.0,107620.0,0.35324723]
[1748495469116,0.50015287,107630.0,107620.0,0.35324723]
[1748495473533,0.48015287,107630.0,107620.0,0.35324723]
[1748495473739,0.48944395,107630.0,107620.0,0.35324723]
[1748495480650,0.46944395,107630.0,107620.0,0.35324723]
[1748495486893,0.19511287,107630.0,107620.0,0.35324723]
[1748495487109,0.49971287,107630.0,107620.0,0.35324723]
[1748495487309,0.49971287,107630.0,107620.0,0.40087291]
[1748495487509,0.47971287,107630.0,107620.0,0.40087291]
[1748495488239,0.47971287,107630.0,107620.0,0.39156653]
[1748495491466,0.47971287,107630.0,107620.0,0.34394085]
[1748495494200,0.47951287,107630.0,107620.0,0.34394085]
[1748495494836,0.45951287,107630.0,107620.0,0.34394085]
[1748495501810,0.43951287,107630.0,107620.0,0.34394085]
[1748495505856,0.43923287,107630.0,107620.0,0.34394085]
[1748495508538,0.43915287,107630.0,107620.0,0.68560496]
[1748495509013,0.41915287,107630.0,107620.0,0.68560496]
[1748495510254,0.41915287,107630.0,107620.0,0.34394085]
[1748495515292,0.41895287,107630.0,107620.0,0.34394085]
[1748495515942,0.39895287,107630.0,107620.0,0.34394085]
[1748495517261,0.39891287,107630.0,107620.0,0.68560496]
[1748495519582,0.39891287,107630.0,107620.0,0.78404496]
[1748495519762,0.39891287,107630.0,107620.0,0.79333691]
[1748495520185,0.39891287,107630.0,107620.0,0.78404496]
[1748495520553,0.39891287,107630.0,107620.0,0.79327441]
[1748495523882,0.37891287,107630.0,107620.0,0.79327441]
[1748495526914,0.07511287,107630.0,107620.0,0.80256636]
[1748495527124,0.37863287,107630.0,107620.0,0.88372819]
[1748495527342,0.37863287,107630.0,107620.0,0.79333691]
[1748495528011,0.37863287,107630.0,107620.0,0.44238085]
[1748495528226,0.37863287,107630.0,107620.0,0.79324925]
[1748495528664,0.37863287,107630.0,107620.0,0.45158514]
[1748495528883,0.37863287,107630.0,107620.0,0.15748514]
[1748495529538,0.37863287,107630.0,107620.0,0.14828085]
[1748495530835,0.35863287,107630.0,107620.0,0.14828085]
[1748495532793,0.35863287,107630.0,107620.0,0.15755214]
[1748495534330,0.35863287,107630.0,107620.0,0.05911214]
[1748495534546,0.35863287,107630.0,107620.0,0.10244]
[1748495536420,0.35863287,107630.0,107620.0,0.11834]
[1748495537558,0.35863287,107630.0,107620.0,0.10244]
[1748495537787,0.37433287,107630.0,107620.0,0.10244]
[1748495538018,0.31281108,107630.0,107620.0,0.10244]
[1748495538273,0.31281108,107630.0,107620.0,0.14769168]
[1748495538488,0.49863287,107630.0,107620.0,0.14769168]
[1748495538966,0.49863287,107630.0,107620.0,0.16359168]
[1748495539210,0.49863287,107630.0,107620.0,0.45769168]
[1748495539985,0.49863287,107630.0,107620.0,0.39654]
[1748495541480,0.51513287,107630.0,107620.0,0.2981]
[1748495542236,0.49863287,107630.0,107620.0,0.2955482]
[1748495545019,0.18582179,107630.0,107620.0,0.2955482]
[1748495545238,0.49815287,107630.0,107620.0,0.0014482]
[1748495545456,0.49815287,107630.0,107620.0,0.0170482]
[1748495547864,0.49815287,107630.0,107620.0,0.0014482]
[1748495548313,0.52925287,107630.0,107620.0,0.0014482]
[1748495548536,0.62030682,107630.0,107620.0,0.0014482]
[1748495552198,0.60030682,107630.0,107620.0,0.0014482]
[1748495553071,0.60030682,107630.0,107620.0,0.0200382]
[1748495553306,0.60030682,107630.0,107620.0,0.0014482]
[1748495554038,0.42519395,107630.0,107620.0,0.0014482]
[1748495555808,0.43461841,107630.0,107620.0,0.0014482]
[1748495556702,0.42519395,107630.0,107620.0,0.0014482]
[1748495558968,0.40909395,107630.0,107620.0,0.0014482]
[1748495559194,0.38909395,107630.0,107620.0,0.0014482]
[1748495562291,0.79531025,107630.0,107620.0,0.0014482]
[1748495562582,0.8180465,107630.0,107620.0,0.0014482]
[1748495562831,0.80418841,107630.0,107620.0,0.0014482]
[1748495563499,0.0319,107620.0,107590.0,0.73488309]
[1748495563712,0.39365395,107610.0,107590.0,0.73488309]
[1748495565518,0.39365395,107610.0,107590.0,0.73888309]
[1748495566348,0.39365395,107610.0,107590.0,0.74288309]
[1748495567572,0.35634926,107630.0,107600.0,0.0309]
[1748495567786,0.09105395,107620.0,107610.0,0.0152]
[1748495567996,0.39353395,107620.0,107610.0,0.0152]
[1748495569726,0.39353395,107620.0,107610.0,0.0182]
[1748495571768,0.09105395,107620.0,107610.0,0.0182]
[1748495571975,0.48345395,107620.0,107610.0,0.0182]
[1748495577972,0.48345395,107620.0,107610.0,0.003]
[1748495578956,0.49895395,107620.0,107610.0,0.003]
[1748495579660,0.48329395,107620.0,107610.0,0.003]
[1748495580794,0.54274755,107620.0,107610.0,0.003]
[1748495582195,0.49949395,107620.0,107610.0,0.003]
[1748495583563,0.48329395,107620.0,107610.0,0.003]
[1748495586289,0.49859395,107620.0,107610.0,0.003]
[1748495586533,0.95171395,107620.0,107610.0,0.003]
[1748495587683,0.95171395,107620.0,107610.0,0.002]
[1748495587943,0.95171395,107620.0,107610.0,0.003]
[1748495588167,0.95171395,107620.0,107610.0,0.001]
[1748495588396,0.93741395,107620.0,107590.0,0.0162]
[1748495588631,0.0157,107610.0,107590.0,0.0312]
[1748495588867,0.39305395,107600.0,107590.0,0.0312]
[1748495589789,0.39305395,107600.0,107590.0,0.0162]
[1748495590033,0.39305395,107600.0,107590.0,0.0182]
[1748495590255,0.43671865,107600.0,107590.0,0.0182]
[1748495590706,0.43671865,107600.0,107590.0,0.0192]
[1748495590936,0.39305395,107600.0,107590.0,0.0192]
[1748495591165,0.39305395,107600.0,107590.0,0.0162]
[1748495591399,0.39305395,107600.0,107590.0,0.0182]
[1748495591704,0.39305395,107600.0,107590.0,0.002]
[1748495591949,0.41624641,107600.0,107590.0,0.003]
[1748495593319,0.39305395,107600.0,107590.0,0.003]
[1748495598517,0.09105395,107600.0,107590.0,0.003]
[1748495598741,0.39285395,107600.0,107590.0,0.0186]
[1748495599174,0.39285395,107600.0,107590.0,0.003]
[1748495599824,0.39285395,107600.0,107590.0,0.019]
[1748495601846,0.43813865,107600.0,107590.0,0.019]
[1748495605026,0.43813865,107600.0,107590.0,0.003]
[1748495605697,0.39285395,107600.0,107590.0,0.003]
[1748495606133,0.37385395,107600.0,107590.0,0.003]
[1748495608801,0.37385395,107600.0,107590.0,0.018]
[1748495609927,0.37361395,107600.0,107590.0,0.018]
[1748495616820,0.07205395,107600.0,107590.0,0.018]
[1748495617050,0.37345395,107600.0,107590.0,0.018]
[1748495623766,0.37333395,107600.0,107590.0,0.033]
[1748495624635,0.37329395,107600.0,107590.0,0.033]
[1748495631952,0.37329395,107600.0,107590.0,0.018]
[1748495634141,0.42493986,107600.0,107590.0,0.018]
[1748495634356,0.42493986,107600.0,107590.0,0.003]
[1748495635494,0.41593986,107600.0,107590.0,0.003]
[1748495636628,0.36429395,107600.0,107590.0,0.003]
[1748495637057,0.37316818,107600.0,107590.0,0.019]
[1748495637275,0.37316818,107600.0,107590.0,0.017]
[1748495637508,0.37316818,107600.0,107590.0,0.016]
[1748495637728,0.37316818,107600.0,107580.0,0.031]
[1748495637944,0.42705409,107600.0,107580.0,0.031]
[1748495639067,0.42705105,107600.0,107580.0,0.031]
[1748495639291,0.36429395,107600.0,107580.0,0.032]
[1748495639508,0.45429395,107600.0,107580.0,0.018]
[1748495639727,0.45429395,107600.0,107590.0,0.015]
[1748495641263,0.45429395,107600.0,107590.0,0.0312]
[1748495641920,0.45429395,107600.0,107590.0,0.015]
[1748495642562,0.44829395,107600.0,107590.0,0.015]
[1748495644115,0.44829395,107600.0,107590.0,0.031]
[1748495644353,0.44829395,107600.0,107590.0,0.015]
[1748495645441,0.44829395,107600.0,107580.0,0.0325]
[1748495645654,0.5089797,107600.0,107580.0,0.0325]
[1748495646524,0.14705395,107600.0,107580.0,0.0325]
[1748495646769,0.3008,107590.0,107580.0,0.0322]
[1748495646985,0.39185395,107590.0,107580.0,0.0342]
[1748495647193,0.73185395,107590.0,107580.0,0.0352]
[1748495647616,0.73185395,107590.0,107580.0,0.0322]
[1748495648041,0.73185395,107590.0,107580.0,0.03569315]
[1748495651369,0.39185395,107590.0,107580.0,0.03569315]
[1748495654679,0.09105395,107590.0,107580.0,0.03569315]
[1748495654891,0.39169395,107590.0,107580.0,0.03569315]
[1748495658215,0.39161395,107590.0,107580.0,0.03569315]
[1748495663563,0.09,107600.0,107590.0,0.0317]
[1748495663785,0.48153395,107600.0,107590.0,0.0317]
[1748495665140,0.48153395,107600.0,107590.0,0.0165]
[1748495666419,0.48153395,107600.0,107580.0,0.03239315]
[1748495666630,0.09105395,107590.0,107580.0,0.03239315]
[1748495667704,0.09105395,107590.0,107580.0,0.03539315]
[1748495667918,0.09105395,107590.0,107580.0,0.03339315]
[1748495668134,0.09105395,107590.0,107580.0,0.03239315]
[1748495668346,0.09105395,107590.0,107580.0,0.03439315]
[1748495668555,0.09105395,107590.0,107580.0,0.03539315]
[1748495675452,0.09105395,107590.0,107580.0,0.00349315]
[1748495675453,0.17289979,107590.0,107580.0,0.00349315]
[1748495675660,0.43282442,107590.0,107580.0,0.00349315]
[1748495675868,0.13262101,107590.0,107580.0,0.00349315]
[1748495676084,0.52922101,107590.0,107580.0,0.00349315]
[1748495676729,0.52922101,107590.0,107580.0,0.00049315]
[1748495676938,0.61922101,107590.0,107580.0,0.00049315]
[1748495677145,0.69514679,107590.0,107580.0,0.00049315]
[1748495677813,0.69714679,107590.0,107580.0,0.00049315]
[1748495678696,0.68827973,107590.0,107580.0,0.00049315]
[1748495681102,0.29167973,107590.0,107580.0,0.00049315]
[1748495681364,0.59597395,107590.0,107580.0,0.00049315]
[1748495681992,0.61227395,107590.0,107580.0,0.00049315]
[1748495683040,0.59587395,107590.0,107580.0,0.00049315]
[1748495683450,0.19935395,107590.0,107580.0,0.00049315]
[1748495683660,0.59583395,107590.0,107580.0,0.00049315]
[1748495683867,0.66946945,107590.0,107580.0,0.00049315]
[1748495693814,0.27298945,107590.0,107580.0,0.00049315]
[1748495694033,0.59559395,107590.0,107580.0,0.00049315]
[1748495695092,0.59559395,107590.0,107580.0,0.01579315]
[1748495700636,0.60445154,107590.0,107580.0,0.01579315]
[1748495701072,0.20821481,107590.0,107580.0,0.01579315]
[1748495701306,0.20821481,107590.0,107580.0,0.03209315]
[1748495701555,0.18305395,107590.0,107580.0,0.03209315]
[1748495701779,0.48273395,107590.0,107580.0,0.03209315]
[1748495702220,0.18305395,107590.0,107580.0,0.03209315]
[1748495702445,0.48273395,107590.0,107580.0,0.03209315]
[1748495703168,0.18305395,107590.0,107580.0,0.03209315]
[1748495703385,0.48269395,107590.0,107580.0,0.03209315]